bitfinex-derivatives/quotes_BTCF0:USTF0_20250904
["timestamp","ask_amount","ask_price","bid_price","bid_amount"]
[1756997977251,1.04584,109900.0,109890.0,0.85458]
[1756997977453,1.38397278,109900.0,109890.0,0.85458]
[1756997979255,1.38397278,109900.0,109890.0,0.00454]
[1756997979445,1.38397278,109900.0,109890.0,0.85354]
[1756997979753,1.38397278,109900.0,109890.0,0.00454]
[1756997979957,1.38397278,109900.0,109890.0,0.85334]
[1756997980156,1.38397278,109900.0,109890.0,0.00454]
[1756997980450,1.38397278,109900.0,109890.0,0.85326]
[1756997981454,1.04584,109900.0,109890.0,0.85326]
[1756997981647,1.38397278,109900.0,109890.0,0.85326]
[1756997982551,1.38397278,109900.0,109890.0,0.00454]
[1756997982749,1.38397278,109900.0,109890.0,0.8527]
[1756997983955,1.38397278,109900.0,109890.0,0.00454]
[1756997984155,1.38397278,109900.0,109890.0,0.85262]
[1756997987253,1.04584,109900.0,109890.0,0.85262]
[1756997987660,1.38397278,109900.0,109890.0,0.85262]
[1756997988059,1.38397278,109900.0,109890.0,0.8523]
[1756997988359,1.04584,109900.0,109890.0,0.8523]
[1756997988554,1.38397278,109900.0,109890.0,0.8523]
[1756997989159,1.38397278,109900.0,109890.0,0.00454]
[1756997989359,1.38397278,109900.0,109890.0,0.8523]
[1756997992164,1.38497278,109900.0,109890.0,0.8523]
[1756997992367,1.38397278,109900.0,109890.0,0.8523]
[1756997992567,1.38597278,109900.0,109890.0,0.8523]
[1756997995468,1.04784,109900.0,109890.0,0.8523]
[1756997995657,1.38597278,109900.0,109890.0,0.8523]
[1756997995859,1.04784,109900.0,109890.0,0.8523]
[1756997996059,0.79784,109900.0,109890.0,0.8523]
[1756997996265,1.13597278,109900.0,109890.0,0.8523]
[1756997998461,1.13597278,109900.0,109890.0,0.00454]
[1756997998763,1.13597278,109900.0,109890.0,0.8523]
[1756998000862,0.79784,109900.0,109890.0,0.8523]
[1756998001068,1.13597278,109900.0,109890.0,0.8523]
[1756998002169,0.79784,109900.0,109890.0,1.19043278]
[1756998002668,0.79784,109900.0,109890.0,0.8523]
[1756998003056,0.79784,109900.0,109890.0,0.85226]
[1756998003469,1.13597278,109900.0,109890.0,0.00454]
[1756998003670,1.13597278,109900.0,109890.0,0.74866]
[1756998004971,0.79784,109900.0,109890.0,0.74866]
[1756998005573,1.13597278,109900.0,109890.0,0.74866]
[1756998005974,1.13597278,109900.0,109890.0,0.00454]
[1756998006179,1.47410556,109900.0,109890.0,0.00454]
[1756998006474,1.72410556,109900.0,109890.0,0.63834]
[1756998007071,1.38597278,109900.0,109890.0,0.63834]
[1756998008171,1.04784,109900.0,109890.0,0.63834]
[1756998008374,1.38597278,109900.0,109890.0,0.63834]
[1756998009076,0.79784,109900.0,109890.0,0.63834]
[1756998009275,1.13597278,109900.0,109890.0,0.63834]
[1756998010280,1.13597278,109900.0,109890.0,0.85242]
[1756998010485,1.13597278,109900.0,109890.0,0.8523]
[1756998010780,1.13597278,109900.0,109890.0,0.85226]
[1756998011679,1.38597278,109900.0,109890.0,0.85226]
[1756998013485,1.72434162,109900.0,109890.0,0.85226]
[1756998015587,1.72434162,109900.0,109890.0,0.00454]
[1756998015783,1.72434162,109900.0,109890.0,0.66146]
[1756998016584,1.72434162,109900.0,109890.0,0.8523]
[1756998016785,1.72434162,109900.0,109890.0,0.00454]
[1756998016786,2.06259243,109900.0,109890.0,0.00454]
[1756998016987,0.04596,109890.0,109880.0,0.0001]
[1756998017289,0.11755,109880.0,109870.0,0.0001]
[1756998017478,0.11755,109870.0,109860.0,0.84782]
[1756998017682,1.11660081,109870.0,109860.0,0.84772]
[1756998018489,1.45485162,109870.0,109860.0,0.07328579]
[1756998018792,1.11660081,109870.0,109860.0,0.83304]
[1756998018992,1.11660081,109870.0,109860.0,0.83404]
[1756998019791,0.77835,109870.0,109860.0,0.83404]
[1756998019988,1.12628149,109870.0,109860.0,0.83404]
[1756998020189,1.12628149,109870.0,109860.0,0.83504]
[1756998020790,1.12628149,109870.0,109860.0,1.17329081]
[1756998022596,0.71644068,109870.0,109860.0,1.76154162]
[1756998022995,0.71644068,109870.0,109860.0,1.42329081]
[1756998023196,1.05469149,109870.0,109860.0,1.42329081]
[1756998023396,1.12628149,109870.0,109860.0,0.83504]
[1756998024092,1.12628149,109870.0,109860.0,0.002]
[1756998024398,1.12628149,109870.0,109860.0,0.84976]
[1756998024787,0.78803068,109870.0,109860.0,0.84976]
[1756998024992,1.12628149,109870.0,109860.0,0.84976]
[1756998025900,0.78803068,109870.0,109860.0,0.84976]
[1756998026092,1.4645323,109870.0,109860.0,0.002]
[1756998026296,1.4645323,109870.0,109860.0,0.84976]
[1756998027087,1.12628149,109870.0,109860.0,0.84976]
[1756998027498,1.4645323,109870.0,109860.0,0.84976]
[1756998027699,1.12628149,109870.0,109860.0,0.84976]
[1756998027899,1.4645323,109870.0,109860.0,0.84976]
[1756998028704,1.12628149,109870.0,109860.0,0.84976]
[1756998029610,1.12628149,109870.0,109860.0,0.8498]
[1756998029611,1.7145323,109870.0,109860.0,0.8498]
[1756998031407,1.37628149,109870.0,109860.0,0.8488]
[1756998031699,1.12628149,109870.0,109860.0,1.18705081]
[1756998031892,0.78803068,109870.0,109860.0,1.18705081]
[1756998032205,0.71644068,109870.0,109860.0,1.77530162]
[1756998032396,0.71644068,109870.0,109860.0,1.77430162]
[1756998032602,1.05469149,109870.0,109860.0,1.43705081]
[1756998032901,1.05469149,109870.0,109860.0,0.8488]
[1756998032902,1.12628149,109870.0,109860.0,0.8488]
[1756998033495,0.78803068,109870.0,109860.0,0.8488]
[1756998033808,0.78803068,109870.0,109860.0,1.0988]
[1756998033809,0.71644068,109870.0,109860.0,1.0988]
[1756998034097,1.05469149,109870.0,109860.0,0.2506]
[1756998034306,1.12628149,109870.0,109860.0,1.0984]
[1756998034498,1.12628149,109870.0,109860.0,0.8484]
[1756998034805,0.78803068,109870.0,109860.0,0.8484]
[1756998035005,1.12628149,109870.0,109860.0,1.18665081]
[1756998035408,0.78803068,109870.0,109860.0,1.18665081]
[1756998035698,1.12628149,109870.0,109860.0,0.8484]
[1756998038805,1.4645323,109870.0,109860.0,0.84836]
[1756998040511,1.4645323,109870.0,109860.0,0.0006]
[1756998040704,1.4645323,109870.0,109860.0,0.84836]
[1756998046512,1.12628149,109870.0,109860.0,0.84836]
[1756998047313,0.78803068,109870.0,109860.0,0.84836]
[1756998047518,1.12628149,109870.0,109860.0,0.84836]
[1756998048717,1.12628149,109870.0,109860.0,1.18661081]
[1756998048916,1.12628149,109870.0,109860.0,1.43661081]
[1756998049116,0.30968068,109870.0,109860.0,1.77486162]
[1756998049318,0.3,109870.0,109860.0,2.13566162]
[1756998049519,0.3,109870.0,109860.0,2.67940014]
[1756998049715,0.3,109870.0,109860.0,3.28940014]
[1756998049916,0.25,109870.0,109860.0,3.28940014]
[1756998050216,0.24,109870.0,109860.0,3.28940014]
[1756998050421,0.26,109870.0,109860.0,3.28940014]
[1756998050616,0.26,109870.0,109860.0,3.29881209]
[1756998050822,0.05537581,109890.0,109860.0,3.29881209]
[1756998051123,0.35537581,109890.0,109880.0,0.67650162]
[1756998051321,0.35537581,109890.0,109880.0,1.52418162]
[1756998051619,0.30941581,109890.0,109880.0,1.79550241]
[1756998052417,0.30941581,109890.0,109880.0,2.15630241]
[1756998052418,0.3,109890.0,109880.0,2.15630241]
[1756998052625,0.3,109890.0,109880.0,2.24730664]
[1756998053625,0.3,109890.0,109880.0,1.39966664]
[1756998053828,0.3,109890.0,109880.0,2.24726664]
[1756998054226,0.3,109890.0,109880.0,2.36173356]
[1756998054525,0.302,109890.0,109880.0,2.36173356]
[1756998054727,0.304,109890.0,109880.0,2.24726664]
[1756998056625,0.304,109890.0,109880.0,2.24718664]
[1756998057328,0.304,109890.0,109880.0,0.72316502]
[1756998057528,0.304,109890.0,109880.0,2.24714664]
[1756998058032,0.34578,109890.0,109880.0,2.24714664]
[1756998058827,0.304,109890.0,109880.0,2.24710664]
[1756998059027,0.34578,109890.0,109880.0,2.15610241]
[1756998059225,0.34578,109890.0,109880.0,1.90610241]
[1756998059926,0.41409,109890.0,109880.0,1.5678116]
[1756998060233,0.75234081,109890.0,109880.0,0.02136079]
[1756998060534,0.75234081,109890.0,109880.0,0.86876079]
[1756998060535,1.36314081,109890.0,109880.0,0.86876079]
[1756998060827,1.36314081,109890.0,109880.0,1.2070116]
[1756998061032,1.36314081,109890.0,109880.0,0.86876079]
[1756998061227,1.02489,109890.0,109880.0,0.86876079]
[1756998061426,1.36314081,109890.0,109880.0,0.86876079]
[1756998061733,1.02489,109890.0,109880.0,0.86872079]
[1756998061928,1.36314081,109890.0,109880.0,0.02136079]
[1756998062225,1.36314081,109890.0,109880.0,0.86872079]
[1756998062628,0.04178,109880.0,109870.0,1.75906]
[1756998062828,1.41908162,109880.0,109870.0,2.60632]
[1756998063033,1.08083081,109880.0,109870.0,2.60632]
[1756998063730,0.72003081,109880.0,109870.0,2.94457081]
[1756998063932,0.72103081,109880.0,109870.0,2.94457081]
[1756998064132,1.08183081,109880.0,109870.0,2.94457081]
[1756998064333,1.08183081,109880.0,109870.0,2.94912081]
[1756998064631,0.38278,109880.0,109870.0,2.94912081]
[1756998064926,1.08183081,109880.0,109870.0,2.61087]
[1756998065132,1.42008162,109880.0,109870.0,2.61087]
[1756998065523,1.42108162,109880.0,109870.0,2.61087]
[1756998065925,1.08283081,109880.0,109870.0,2.61087]
[1756998066126,1.42108162,109880.0,109870.0,2.61087]
[1756998066324,1.67108162,109880.0,109870.0,2.61087]
[1756998066734,1.67108162,109880.0,109870.0,1.76351]
[1756998067133,1.67108162,109880.0,109870.0,2.61083]
[1756998067531,0.99458,109880.0,109870.0,2.61083]
[1756998067727,1.67108162,109880.0,109870.0,2.61083]
[1756998068538,1.67108162,109880.0,109870.0,1.76351]
[1756998068772,1.67108162,109880.0,109870.0,2.61087]
[1756998069132,1.73939162,109880.0,109870.0,0.85191]
[1756998071830,1.73939162,109880.0,109870.0,0.00455]
[1756998072025,1.73939162,109880.0,109870.0,0.85195]
[1756998075240,2.08939162,109880.0,109870.0,0.85195]
[1756998075440,1.40127909,109880.0,109870.0,0.85195]
[1756998075632,1.77127909,109880.0,109870.0,0.85195]
[1756998075941,1.40127909,109880.0,109870.0,0.85195]
[1756998076438,0.11825,109870.0,109860.0,0.0001]
[1756998076642,1.14743909,109870.0,109860.0,0.8474]
[1756998076838,0.04405,109860.0,109850.0,0.0724097]
[1756998077033,0.04405,109850.0,109840.0,1.75878]
[1756998077233,1.06323909,109850.0,109840.0,2.60608]
[1756998077643,1.14518115,109850.0,109840.0,2.60608]
[1756998078239,1.14518115,109850.0,109840.0,1.75868]
[1756998078440,1.14518115,109850.0,109840.0,2.60612]
[1756998079935,0.72485,109850.0,109840.0,2.60712]
[1756998082835,0.72485,109850.0,109840.0,1.75968]
[1756998083040,1.14518115,109850.0,109840.0,2.60712]
[1756998085947,0.11825,109840.0,109830.0,0.84754]
[1756998086142,1.22938115,109840.0,109830.0,0.84744]
[1756998087350,1.22938115,109840.0,109830.0,0.85044]
[1756998089840,0.80905,109840.0,109830.0,0.85044]
[1756998090048,0.80905,109840.0,109830.0,1.10044]
[1756998090835,0.73485,109840.0,109830.0,1.09744]
[1756998091035,0.6918,109840.0,109830.0,1.09744]
[1756998091340,0.73585,109840.0,109830.0,1.09744]
[1756998091642,0.6918,109840.0,109830.0,1.09744]
[1756998092247,0.73585,109840.0,109830.0,1.09744]
[1756998093944,0.81005,109840.0,109820.0,0.45465082]
[1756998094149,0.04405,109830.0,109820.0,0.45465082]
[1756998094342,0.44825,109830.0,109820.0,0.09375082]
[1756998094647,0.80905,109830.0,109820.0,0.94123082]
[1756998095048,0.80905,109830.0,109820.0,0.94223082]
[1756998095244,0.80905,109830.0,109820.0,0.09475082]
[1756998095450,0.80905,109830.0,109820.0,0.94223082]
[1756998095849,0.80905,109830.0,109820.0,0.94219082]
[1756998097145,0.81878255,109830.0,109820.0,0.94219082]
[1756998100456,0.81878255,109830.0,109820.0,0.92133016]
[1756998105548,0.81878255,109830.0,109820.0,0.07389016]
[1756998105752,0.81878255,109830.0,109820.0,0.92129016]
[1756998111255,0.81878255,109830.0,109820.0,0.07389016]
[1756998111460,0.81878255,109830.0,109820.0,0.92125016]
[1756998112559,0.33,109830.0,109820.0,1.59158131]
[1756998112764,0.44056,109830.0,109820.0,0.74422131]
[1756998112966,0.44056,109830.0,109820.0,1.17121016]
[1756998113170,0.5315856,109830.0,109820.0,1.17121016]
[1756998115765,0.5315856,109830.0,109820.0,0.32389016]
[1756998115962,0.54103978,109830.0,109820.0,1.17117016]
[1756998116768,0.54103978,109830.0,109820.0,0.32389016]
[1756998116969,0.54103978,109830.0,109820.0,1.17117016]
[1756998117170,0.54103978,109830.0,109820.0,0.32389016]
[1756998117372,0.54103978,109830.0,109820.0,1.17117016]
[1756998118866,0.47088978,109830.0,109820.0,1.17117016]
[1756998119070,0.43047978,109830.0,109820.0,1.17117016]
[1756998119271,0.43047978,109830.0,109820.0,0.92117016]
[1756998119468,0.4210256,109830.0,109820.0,1.25965275]
[1756998120362,0.0910219,109840.0,109820.0,2.29996934]
[1756998120563,0.0910174,109840.0,109830.0,0.7018257]
[1756998120768,0.0910174,109840.0,109830.0,0.6108]
[1756998121069,0.4310174,109840.0,109830.0,0.70184565]
[1756998121272,0.0910174,109840.0,109830.0,0.70184565]
[1756998121470,0.3310174,109840.0,109830.0,1.54904565]
[1756998121669,0.0910174,109840.0,109830.0,2.22601083]
[1756998121870,0.3410174,109840.0,109830.0,2.31703653]
[1756998122278,0.10041413,109850.0,109840.0,0.0910174]
[1756998122469,0.0910133,109850.0,109840.0,0.79029999]
[1756998122667,0.3810133,109850.0,109840.0,0.79029999]
[1756998122970,0.0910133,109850.0,109840.0,1.84581256]
[1756998123577,0.0910133,109850.0,109840.0,1.82253239]
[1756998123876,0.3710133,109850.0,109840.0,1.82253239]
[1756998124065,0.3710133,109850.0,109840.0,2.66965239]
[1756998124376,0.0910133,109850.0,109840.0,2.66965239]
[1756998124667,0.0909894,109880.0,109860.0,0.0909985]
[1756998124867,0.4009894,109880.0,109870.0,1.62785204]
[1756998125678,0.4413994,109880.0,109870.0,1.62785204]
[1756998126265,0.4433994,109880.0,109870.0,0.78077204]
[1756998126572,0.04041,109870.0,109860.0,2.12026]
[1756998126775,0.37009778,109870.0,109860.0,2.96716]
[1756998127266,0.37009778,109870.0,109860.0,2.97171]
[1756998127460,0.37009778,109870.0,109860.0,2.61091]
[1756998128061,0.37009778,109870.0,109860.0,2.61087]
[1756998128262,0.62009778,109870.0,109860.0,1.76391]
[1756998128468,0.62109778,109870.0,109860.0,1.76391]
[1756998128674,0.62109778,109870.0,109860.0,2.61083]
[1756998129475,0.62309778,109870.0,109860.0,2.61083]
[1756998130073,0.62609778,109870.0,109860.0,2.61083]
[1756998131070,0.98689778,109870.0,109860.0,1.76391]
[1756998131375,0.98689778,109870.0,109860.0,2.61079]
[1756998132075,0.62609778,109870.0,109860.0,2.61079]
[1756998135978,0.37609778,109870.0,109860.0,3.03369912]
[1756998136172,0.326,109870.0,109860.0,3.37469962]
[1756998136373,0.006,109870.0,109860.0,3.82652041]
[1756998136980,0.39959,109910.0,109880.0,0.090981]
[1756998137287,0.82553462,109910.0,109900.0,0.42290912]
[1756998137481,0.82553462,109910.0,109890.0,1.63060912]
[1756998139080,0.82473462,109910.0,109890.0,1.63060912]
[1756998139285,0.03879,109900.0,109890.0,1.63060912]
[1756998139480,0.32879,109900.0,109890.0,1.63050912]
[1756998139678,0.32879,109900.0,109890.0,1.63504912]
[1756998140473,0.29,109900.0,109890.0,1.63704912]
[1756998141587,0.29,109900.0,109890.0,0.79024912]
[1756998141588,0.32879,109900.0,109890.0,0.79024912]
[1756998141783,0.64544,109900.0,109890.0,0.00654]
[1756998142090,0.64544,109900.0,109890.0,0.85318]
[1756998142282,1.00624,109900.0,109890.0,0.00654]
[1756998142484,1.42914912,109900.0,109890.0,0.00654]
[1756998142783,1.42914912,109900.0,109890.0,0.83018]
[1756998143082,1.42914912,109900.0,109890.0,0.00654]
[1756998143293,1.43114912,109900.0,109890.0,0.85314]
[1756998143686,1.43114912,109900.0,109890.0,0.00654]
[1756998143985,1.43114912,109900.0,109890.0,0.54926]
[1756998144383,1.43314912,109900.0,109890.0,0.54726]
[1756998145382,1.43614912,109900.0,109890.0,0.52583]
[1756998145582,1.75614912,109900.0,109880.0,0.0001]
[1756998145780,0.78370912,109890.0,109880.0,0.0001]
[1756998145992,1.13370912,109890.0,109880.0,0.80356]
[1756998146485,1.23914912,109890.0,109880.0,0.80356]
[1756998146689,0.81624,109890.0,109880.0,0.84676]
[1756998147288,0.81924,109890.0,109880.0,0.84676]
[1756998147986,0.82224,109890.0,109880.0,0.84676]
[1756998148397,0.82224,109890.0,109880.0,0.92027269]
[1756998148703,0.81924,109890.0,109880.0,0.92027269]
[1756998148999,0.82124,109890.0,109880.0,0.92027269]
[1756998149198,0.82024,109890.0,109880.0,0.92027269]
[1756998150888,0.45944,109890.0,109880.0,0.92027269]
[1756998151094,1.17904,109890.0,109880.0,0.92027269]
[1756998151392,1.18104,109890.0,109880.0,0.92027269]
[1756998152401,1.60394912,109890.0,109880.0,0.92027269]
[1756998152592,0.03879,109880.0,109870.0,0.0001]
[1756998152893,0.81624,109880.0,109870.0,0.8466]
[1756998153099,1.23914912,109880.0,109870.0,0.8898]
[1756998154103,0.81724,109880.0,109870.0,0.8898]
[1756998154904,0.81824,109880.0,109870.0,0.8898]
[1756998156697,0.75159,109880.0,109870.0,1.31270912]
[1756998157098,0.81824,109880.0,109870.0,0.0432]
[1756998157299,0.81824,109880.0,109870.0,0.8908]
[1756998158002,0.81824,109880.0,109870.0,0.0432]
[1756998158196,0.81824,109880.0,109870.0,0.8908]
[1756998160001,0.81824,109880.0,109870.0,0.0432]
[1756998160206,0.81824,109880.0,109870.0,0.89068]
[1756998161896,0.81824,109880.0,109870.0,0.8902]
[1756998162501,1.24114912,109880.0,109870.0,0.8898]
[1756998162703,0.81824,109880.0,109870.0,0.8898]
[1756998163005,0.81824,109880.0,109870.0,0.8466]
[1756998163305,0.04123,109870.0,109860.0,1.75946]
[1756998163500,0.75203,109870.0,109860.0,2.60596]
[1756998165707,0.75203,109870.0,109860.0,2.60696]
[1756998166607,0.75303,109870.0,109860.0,2.60696]
[1756998166811,0.75303,109870.0,109860.0,2.60596]
[1756998167002,0.75403,109870.0,109860.0,2.60596]
[1756998168911,0.75403,109870.0,109860.0,3.02886912]
[1756998169507,0.75403,109870.0,109860.0,3.28252644]
[1756998170511,0.75403,109870.0,109860.0,2.43592644]
[1756998170713,0.75403,109870.0,109860.0,3.28252644]
[1756998171012,0.75403,109870.0,109860.0,2.43592644]
[1756998171205,1.09231322,109870.0,109860.0,2.94424322]
[1756998172210,0.75403,109870.0,109860.0,2.94424322]
[1756998172412,0.7128,109870.0,109860.0,3.28252644]
[1756998173011,0.8037979,109870.0,109860.0,3.28252644]
[1756998173311,0.4429979,109870.0,109860.0,3.53252644]
[1756998173707,0.4429979,109870.0,109860.0,3.64681489]
[1756998175716,0.4419979,109870.0,109860.0,3.64681489]
[1756998176314,0.4409979,109870.0,109860.0,3.64681489]
[1756998176513,0.4409979,109870.0,109860.0,3.89432644]
[1756998176815,0.4409979,109870.0,109860.0,3.21776]
[1756998177018,0.4409979,109870.0,109860.0,3.89432644]
[1756998177216,0.4409979,109870.0,109860.0,4.00861489]
[1756998179312,0.4409979,109870.0,109860.0,3.75861489]
[1756998179819,0.4409979,109870.0,109860.0,3.75857489]
[1756998183316,0.4409979,109870.0,109860.0,2.91201489]
[1756998183626,1.07051112,109870.0,109860.0,3.05945167]
[1756998183815,1.07051112,109870.0,109860.0,2.21293167]
[1756998184218,1.07051112,109870.0,109860.0,3.05945167]
[1756998184614,1.07051112,109870.0,109860.0,2.94516322]
[1756998184917,1.43131112,109870.0,109860.0,2.7214925]
[1756998185119,1.43231112,109870.0,109860.0,2.7204925]
[1756998185521,1.43331112,109870.0,109860.0,2.7204925]
[1756998185822,1.43331112,109870.0,109860.0,2.60588]
[1756998186219,1.43331112,109870.0,109860.0,1.75936]
[1756998186220,1.77159434,109870.0,109860.0,1.75936]
[1756998186424,1.77159434,109870.0,109860.0,2.60584]
[1756998187222,1.77159434,109870.0,109860.0,1.75936]
[1756998187418,1.77159434,109870.0,109860.0,2.60584]
[1756998190317,1.43331112,109870.0,109860.0,2.61039]
[1756998192022,1.77159434,109870.0,109860.0,2.61039]
[1756998193025,1.77159434,109870.0,109860.0,1.76391]
[1756998193233,1.77159434,109870.0,109860.0,2.61039]
[1756998195428,1.77159434,109870.0,109860.0,1.76391]
[1756998195629,1.77159434,109870.0,109860.0,2.61039]
[1756998195829,2.15546434,109870.0,109860.0,0.00455]
[1756998196030,2.15546434,109870.0,109860.0,0.84648]
[1756998197133,0.04017,109860.0,109850.0,0.0001]
[1756998197332,1.48140644,109860.0,109850.0,0.83708]
[1756998197526,1.48187736,109860.0,109850.0,0.83708]
[1756998197722,1.48187736,109860.0,109840.0,0.0001]
[1756998198029,0.80335868,109850.0,109840.0,0.03363]
[1756998198235,1.13335868,109850.0,109840.0,0.88001]
[1756998198426,1.13235868,109850.0,109830.0,0.0001]
[1756998198627,0.80335868,109840.0,109830.0,0.03523]
[1756998198832,1.12335868,109840.0,109830.0,0.88161]
[1756998199227,1.12135868,109840.0,109830.0,0.88161]
[1756998199623,1.12035868,109840.0,109830.0,0.88161]
[1756998200131,1.12235868,109840.0,109830.0,0.88161]
[1756998200435,1.13174709,109840.0,109830.0,0.88161]
[1756998200829,0.79322841,109840.0,109830.0,0.88161]
[1756998201135,0.79522841,109840.0,109830.0,0.88161]
[1756998202040,0.79522841,109840.0,109830.0,0.03513]
[1756998202240,1.13374709,109840.0,109830.0,0.88157]
[1756998202433,0.79522841,109840.0,109830.0,0.88157]
[1756998202633,1.13374709,109840.0,109830.0,0.88157]
[1756998205743,0.79522841,109840.0,109830.0,0.88157]
[1756998206240,1.13374709,109840.0,109830.0,0.88157]
[1756998206536,0.79522841,109840.0,109830.0,0.88161]
[1756998206741,1.13374709,109840.0,109830.0,0.88161]
[1756998208436,0.79522841,109840.0,109830.0,0.88161]
[1756998210942,1.13374709,109840.0,109830.0,0.88161]
[1756998214537,0.79522841,109840.0,109830.0,1.22012868]
[1756998215647,0.79522841,109840.0,109830.0,0.88161]
[1756998215845,0.79522841,109840.0,109830.0,1.22012868]
[1756998217143,0.79522841,109840.0,109830.0,0.88161]
[1756998217349,1.13374709,109840.0,109830.0,0.03513]
[1756998217649,1.13374709,109840.0,109830.0,0.88153]
[1756998219344,1.13374709,109840.0,109820.0,2.17050884]
[1756998219533,0.3996,109830.0,109820.0,1.83199016]
[1756998219738,0.6896,109830.0,109820.0,3.01676884]
[1756998220747,0.6916,109830.0,109820.0,2.67825016]
[1756998221140,0.6936,109830.0,109820.0,2.67825016]
[1756998221850,1.03211868,109830.0,109820.0,1.83189016]
[1756998222037,1.03211868,109830.0,109820.0,2.67821016]
[1756998222443,1.03211868,109830.0,109820.0,1.83189016]
[1756998222644,1.03211868,109830.0,109820.0,2.67821016]
[1756998223946,1.28211868,109830.0,109820.0,2.60528]
[1756998230054,0.9436,109830.0,109820.0,2.60528]
[1756998230254,1.28211868,109830.0,109820.0,2.60528]
[1756998230957,0.9436,109830.0,109820.0,2.60528]
[1756998231151,1.28211868,109830.0,109820.0,2.60528]
[1756998232855,1.60211868,109830.0,109820.0,2.60528]
[1756998233056,1.69314978,109830.0,109820.0,2.4650904]
[1756998233358,0.1919296,109820.0,109810.0,0.10372949]
[1756998233544,1.19124828,109820.0,109810.0,0.94990949]
[1756998234467,0.10089,109810.0,109800.0,0.02958]
[1756998234655,1.12020868,109810.0,109800.0,0.87576]
[1756998235552,1.12020868,109810.0,109800.0,0.94836479]
[1756998242260,0.78169,109810.0,109800.0,0.94836479]
[1756998242656,0.78169,109810.0,109800.0,0.10208479]
[1756998242962,1.12020868,109810.0,109800.0,0.94836479]
[1756998244862,0.78169,109810.0,109800.0,0.94836479]
[1756998245059,1.12020868,109810.0,109800.0,0.94836479]
[1756998245560,0.78169,109810.0,109800.0,0.94836479]
[1756998245758,1.12020868,109810.0,109800.0,0.94836479]
[1756998249267,0.78169,109810.0,109800.0,0.94836479]
[1756998249469,0.78169,109810.0,109800.0,1.28688347]
[1756998249765,0.32,109810.0,109800.0,1.87536215]
[1756998250154,0.32,109810.0,109800.0,1.53684347]
[1756998250357,0.32,109810.0,109800.0,1.87536215]
[1756998251260,0.32,109810.0,109800.0,0.69060347]
[1756998251465,0.32,109810.0,109800.0,1.53684347]
[1756998252460,0.42149,109810.0,109800.0,0.69060347]
[1756998252664,0.42149,109810.0,109800.0,1.19832479]
[1756998252966,0.42149,109810.0,109800.0,1.53680347]
[1756998253161,0.42149,109810.0,109800.0,0.69060347]
[1756998253464,0.42149,109810.0,109800.0,1.28680347]
[1756998253662,0.78229,109810.0,109800.0,1.28680347]
[1756998253858,0.78229,109810.0,109800.0,0.94828479]
[1756998254061,0.78229,109810.0,109800.0,1.28680347]
[1756998255469,0.6808,109810.0,109800.0,1.28680347]
[1756998255867,0.6808,109810.0,109800.0,0.94828479]
[1756998256072,0.7193,109810.0,109800.0,1.28680347]
[1756998257676,0.6808,109810.0,109800.0,1.62555579]
[1756998257867,0.7193,109810.0,109800.0,1.62555579]
[1756998258772,0.78229,109810.0,109800.0,1.62555579]
[1756998258978,0.78229,109810.0,109800.0,0.77939579]
[1756998259172,0.78229,109810.0,109800.0,0.44074029]
[1756998259173,1.1209455,109810.0,109800.0,0.44074029]
[1756998259369,0.78229,109810.0,109800.0,1.28690029]
[1756998259666,0.78229,109810.0,109800.0,1.62555579]
[1756998260965,0.78229,109810.0,109800.0,1.28690029]
[1756998261373,0.78229,109810.0,109800.0,0.44074029]
[1756998261573,0.78229,109810.0,109800.0,1.28690029]
[1756998262378,0.78229,109810.0,109800.0,1.62555579]
[1756998262680,0.78229,109810.0,109800.0,1.74016829]
[1756998262863,0.6808,109810.0,109800.0,1.62555579]
[1756998263268,0.3585,109810.0,109800.0,1.62555579]
[1756998264974,0.32,109810.0,109800.0,1.62555579]
[1756998265180,0.32,109810.0,109800.0,1.87555579]
[1756998265774,0.32,109810.0,109800.0,1.99016829]
[1756998266676,0.32,109810.0,109800.0,1.14400829]
[1756998266878,0.3585,109810.0,109800.0,1.15920829]
[1756998267077,0.42149,109810.0,109800.0,2.00528829]
[1756998267270,0.32,109810.0,109800.0,2.00528829]
[1756998268477,0.3585,109810.0,109800.0,1.32797729]
[1756998268678,0.3585,109810.0,109800.0,1.15920829]
[1756998268977,0.42149,109810.0,109800.0,0.48189729]
[1756998269178,0.42149,109810.0,109800.0,2.00528829]
[1756998270174,0.7601455,109810.0,109800.0,1.15920829]
[1756998270374,0.42149,109810.0,109800.0,0.48189729]
[1756998270578,1.1209455,109810.0,109800.0,1.66659279]
[1756998270774,0.78229,109810.0,109800.0,2.00524829]
[1756998270969,0.78229,109810.0,109800.0,1.32793729]
[1756998271176,1.1209455,109810.0,109800.0,0.48189729]
[1756998271370,1.3709455,109810.0,109800.0,1.32793729]
[1756998271777,1.3709455,109810.0,109800.0,1.21332479]
[1756998272581,1.3709455,109810.0,109800.0,0.36728479]
[1756998272781,1.3709455,109810.0,109800.0,0.10208479]
[1756998272970,1.3709455,109810.0,109800.0,0.94812479]
[1756998274179,1.3709455,109810.0,109800.0,0.07260479]
[1756998274481,1.3709455,109810.0,109800.0,0.87074]
[1756998274876,1.03229,109810.0,109800.0,0.87074]
[1756998275075,1.3709455,109810.0,109800.0,0.87074]
[1756998275569,1.3709455,109810.0,109790.0,0.3387555]
[1756998275782,0.8009455,109800.0,109790.0,0.3634555]
[1756998275983,0.8009455,109800.0,109790.0,1.2093955]
[1756998275984,1.0909455,109800.0,109790.0,1.2093955]
[1756998276380,1.0909455,109800.0,109790.0,1.28186122]
[1756998276682,1.0909455,109800.0,109790.0,0.94320572]
[1756998276884,1.0909455,109800.0,109790.0,0.43582122]
[1756998277081,1.0909455,109800.0,109790.0,1.28186122]
[1756998277274,0.75229,109800.0,109790.0,1.28186122]
[1756998277475,1.0909455,109800.0,109790.0,1.28290122]
[1756998277672,1.0909455,109800.0,109790.0,0.43682122]
[1756998277887,1.0909455,109800.0,109790.0,0.94420572]
[1756998278077,1.0909455,109800.0,109790.0,1.28286122]
[1756998278585,1.0909455,109800.0,109790.0,1.28486122]
[1756998278984,1.0909455,109800.0,109790.0,1.28386122]
[1756998279185,1.0909455,109800.0,109790.0,1.28186122]
[1756998279486,1.429601,109800.0,109790.0,0.94324572]
[1756998279683,1.0909455,109800.0,109790.0,0.94324572]
[1756998280185,1.429601,109800.0,109790.0,0.09716572]
[1756998280387,1.429601,109800.0,109790.0,0.94324572]